[Event "CZE-ch Youth G10-G12-G14 2022"]
[Site "Luhacovice"]
[Date "2022.03.18"]
[Round "8.16"]
[White "Stara, Zuzana"]
[Black "Hladka, Leontyna"]
[Result "1-0"]
[ECO "C78"]
[WhiteElo "1322"]
[BlackElo "1134"]
[Annotator "NA"]
[PlyCount "165"]
[EventDate "2022.03.12"]
[EventType "swiss"]
[EventCountry "CZE"]
[SourceTitle "playchess.com"]
[Source "ChessBase"]
[SourceQuality "1"]
[TimeControl "40/5400+30:1800+30"]

1. e4 {[%emt 0:00:02]} e5 {[%emt 0:00:06]} 2. Nf3 {[%emt 0:00:07]} Nc6 {[%emt 0:00:05]} 3. Bb5 {[%emt 0:00:13]} a6 {[%emt 0:00:10]} 4. Ba4 {[%emt 0:00:13]} Bc5 {[%emt 0:00:17]} 5. c3 {[%emt 0:01:04]} b5 {[%emt 0:01:11]} 6. Bc2 {[%emt 0:00:29]} d6 {[%emt 0:00:17]} 7. O-O {[%emt 0:00:34]} Nf6 {[%emt 0:00:38]} 8. Re1 {[%emt 0:03:02]} O-O {[%emt 0:00:24]} 9. a4 {[%emt 0:01:45]} Rb8 {[%emt 0:00:21]} 10. a5 {[%emt 0:04:50]} Bg4 {[%emt 0:00:55]} 11. h3 {[%emt 0:00:56]} Bh5 {[%emt 0:01:10]} 12. d3 {[%emt 0:02:17]} h6 {[%emt 0:02:19]} 13. b4 {[%emt 0:03:01]} Ba7 {[%emt 0:00:13]} 14. Nbd2 {[%emt 0:00:30]} Qd7 {[%emt 0:01:18]} 15. Nf1 {[%emt 0:02:09]} Rfe8 {[%emt 0:03:25]} 16. Ne3 {[%emt 0:04:05]} Ne7 {[%emt 0:04:44]} 17. Bb3 {[%emt 0:11:05]} Rbc8 {[%emt 0:10:36]} 18. Qe2 {[%emt 0:04:05]} Bg6 {[%emt 0:04:23]} 19. Bd2 {[%emt 0:02:36]} Rb8 {[%emt 0:01:08]} 20. Red1 {[%emt 0:03:53]} Bh7 {[%emt 0:03:00]} 21. Nh4 {[%emt 0:12:15]} Ng6 {[%emt 0:01:51]} 22. Nef5 {[%emt 0:06:04]} Nxh4 {[%emt 0:01:16]} 23. Nxh4 {[%emt 0:00:23]} Qe7 {[%emt 0:06:46]} 24. Qf3 {[%emt 0:05:02]} Rf8 {[%emt 0:04:10]} 25. Qg3 {[%emt 0:06:49]} Nh5 {[%emt 0:04:32]} 26. Qg4 {[%emt 0:06:41]} Nf6 {[%emt 0:01:14]} 27. Nf5 {[%emt 0:03:26]} Bxf5 {[%emt 0:00:27]} 28. Qxf5 {[%emt 0:00:09]} Qd7 {[%emt 0:03:25]} 29. Qf3 {[%emt 0:01:10]} Kh7 {[%emt 0:06:27]} 30. Qg3 {[%emt 0:01:09]} Ng8 {[%emt 0:07:52]} 31. Bc1 {[%emt 0:04:23]} Qe7 {[%emt 0:03:20]} 32. Qf3 {[%emt 0:00:44]} Qf6 {[%emt 0:00:51]} 33. Qg3 {[%emt 0:01:20]} Ne7 {[%emt 0:05:45]} 34. Be3 {[%emt 0:01:27]} Bxe3 {[%emt 0:00:24]} 35. Qxe3 {[%emt 0:00:04]} Ra8 {[%emt 0:03:31]} 36. Rac1 {[%emt 0:00:20]} Kg8 {[%emt 0:01:55]} 37. d4 {[%emt 0:00:34]} Rfc8 {[%emt 0:02:15]} 38. Kf1 {[%emt 0:02:17]} c6 {[%emt 0:01:37]} 39. dxe5 {[%emt 0:01:26]} Qxe5 {[%emt 0:00:58]} 40. Qf3 {[%emt 0:01:09]} Rf8 {[%emt 0:01:05]} 41. Kg1 {[%emt 0:30:25]} c5 {[%emt 0:33:52]} 42. Bd5 {[%emt 0:01:00]} Nxd5 {[%emt 0:00:32]} 43. Rxd5 {[%emt 0:00:19]} Qe7 {[%emt 0:00:22]} 44. Rcd1 {[%emt 0:00:54]} Rfd8 {[%emt 0:02:00]} 45. Qf4 {[%emt 0:00:30]} cxb4 {[%emt 0:01:30]} 46. cxb4 {[%emt 0:00:08]} Re8 {[%emt 0:02:41]} 47. f3 {[%emt 0:01:00]} Qa7+ {[%emt 0:01:51]} 48. Kh2 {[%emt 0:01:07]} Re6 {[%emt 0:01:49]} 49. Rxd6 {[%emt 0:00:35]} Rxd6 {[%emt 0:00:08]} 50. Qxd6 {[%emt 0:00:45]} Qe3 {[%emt 0:00:30]} 51. Qc6 {[%emt 0:01:55]} Ra7 {[%emt 0:01:55]} 52. Qc8+ {[%emt 0:00:57]} Kh7 {[%emt 0:00:16]} 53. Qf5+ {[%emt 0:00:43]} g6 {[%emt 0:00:24]} 54. Qd5 {[%emt 0:00:38]} Qf4+ {[%emt 0:00:43]} 55. Kh1 {[%emt 0:00:32]} Qc7 {[%emt 0:00:37]} 56. Qd6 {[%emt 0:01:04]} Qb7 {[%emt 0:01:01]} 57. Qf8 {[%emt 0:00:59]} Ra8 {[%emt 0:00:45]} 58. Rd8 {[%emt 0:00:46]} Rxd8 {[%emt 0:00:10]} 59. Qxd8 {[%emt 0:00:02]} Qc6 {[%emt 0:00:38]} 60. Qd2 {[%emt 0:00:47]} Qc7 {[%emt 0:00:43]} 61. Kg1 {[%emt 0:00:43]} Qa7+ {[%emt 0:00:19]} 62. Kf1 {[%emt 0:00:41]} Qc7 {[%emt 0:00:11]} 63. Kf2 {[%emt 0:00:41]} Qc8 {[%emt 0:00:53]} 64. Ke3 {[%emt 0:00:38]} Qc4 {[%emt 0:00:42]} 65. Qd4 {[%emt 0:00:27]} Qc1+ {[%emt 0:00:12]} 66. Qd2 {[%emt 0:00:18]} Qg1+ {[%emt 0:00:45]} 67. Kd3 {[%emt 0:00:39]} Qb1+ {[%emt 0:00:20]} 68. Kc3 {[%emt 0:00:36]} Qa1+ {[%emt 0:00:24]} 69. Kb3 {[%emt 0:00:34]} Qb1+ {[%emt 0:00:55]} 70. Kc3 {[%emt 0:00:19]} Qa1+ {[%emt 0:00:10]} 71. Qb2 {[%emt 0:00:28]} Qe1+ {[%emt 0:00:10]} 72. Kd4 {[%emt 0:00:14]} Qd1+ {[%emt 0:00:15]} 73. Kc5 {[%emt 0:00:28]} Qg1+ {[%emt 0:00:24]} 74. Kc6 {[%emt 0:00:28]} Qd1 {[%emt 0:01:05]} 75. Qf6 {[%emt 0:00:47]} Qc2+ {[%emt 0:00:30]} 76. Kb7 {[%emt 0:00:35]} Qc4 {[%emt 0:01:25]} 77. Qe7 {[%emt 0:00:32]} Kg7 {[%emt 0:00:52]} 78. Kxa6 {[%emt 0:00:31]} Qc6+ {[%emt 0:00:21]} 79. Ka7 {[%emt 0:00:06]} Qc4 {[%emt 0:00:40]} 80. a6 {[%emt 0:00:24]} Qd4+ {[%emt 0:00:19]} 81. Kb7 {[%emt 0:00:24]} Qc4 {[%emt 0:00:45]} 82. a7 {[%emt 0:00:22]} Qc3 {[%emt 0:00:33]} 83. a8=Q {[%emt 0:00:18]} 1-0

[Event "CZE-ch Youth G10-G12-G14 2022"]
[Site "Luhacovice"]
[Date "2022.03.18"]
[Round "8.17"]
[White "Barteckova, Nikol"]
[Black "Lukaskova Ellen"]
[Result "1-0"]
[ECO "C56"]
[WhiteElo "1140"]
[BlackElo "1058"]
[Annotator "NA"]
[PlyCount "50"]
[EventDate "2022.03.12"]
[EventType "swiss"]
[EventCountry "CZE"]
[SourceTitle "playchess.com"]
[Source "ChessBase"]
[SourceQuality "1"]
[TimeControl "40/5400+30:1800+30"]

1. e4 {[%emt 0:00:03]} e5 {[%emt 0:00:04]} 2. Nf3 {[%emt 0:00:16]} Nc6 {[%emt 0:00:12]} 3. d4 {[%emt 0:00:26]} exd4 {[%emt 0:00:42]} 4. Bc4 {[%emt 0:00:06]} Nf6 {[%emt 0:03:47]} 5. e5 {[%emt 0:00:47]} d5 {[%emt 0:01:44]} 6. Bb5 {[%emt 0:01:06]} Nd7 {[%emt 0:06:19]} 7. O-O {[%emt 0:04:44]} Bc5 {[%emt 0:05:08]} 8. Bxc6 {[%emt 0:03:58]} bxc6 {[%emt 0:01:03]} 9. Nxd4 {[%emt 0:00:10]} Bxd4 {[%emt 0:05:46]} 10. Qxd4 {[%emt 0:00:25]} O-O {[%emt 0:01:14]} 11. Re1 {[%emt 0:01:12]} Re8 {[%emt 0:05:17]} 12. Bf4 {[%emt 0:03:27]} Qh4 {[%emt 0:07:45]} 13. c3 {[%emt 0:00:56]} Nb6 {[%emt 0:06:32]} 14. Bg3 {[%emt 0:03:00]} Qxd4 {[%emt 0:22:51]} 15. cxd4 {[%emt 0:13:08]} f6 {[%emt 0:00:30]} 16. Nd2 {[%emt 0:00:30]} fxe5 {[%emt 0:00:30]} 17. Bxe5 {[%emt 0:00:30]} Re7 {[%emt 0:00:30]} 18. b3 {[%emt 0:00:30]} Bb7 {[%emt 0:00:30]} 19. Nf3 {[%emt 0:00:30]} Rc8 {[%emt 0:00:30]} 20. h3 {[%emt 0:00:30]} Nd7 {[%emt 0:00:30]} 21. Bg3 {[%emt 0:00:30]} Rxe1+ {[%emt 0:00:30]} 22. Rxe1 {[%emt 0:00:30]} Nf6 {[%emt 0:00:30]} 23. Re7 {[%emt 0:00:30]} Kf8 {[%emt 0:00:30]} 24. Rxc7 {[%emt 0:00:51]} Rxc7 {[%emt 0:02:22]} 25. Bxc7 {[%emt 0:00:30]} Ke7 {[%emt 0:00:30]} 1-0

[Event "CZE-ch Youth G10-G12-G14 2022"]
[Site "Luhacovice"]
[Date "2022.03.18"]
[Round "8.18"]
[White "Kavanova Valentyna"]
[Black "Bouchalova, Kveta"]
[Result "1-0"]
[ECO "D07"]
[WhiteElo "1000"]
[BlackElo "1303"]
[Annotator "NA"]
[PlyCount "65"]
[EventDate "2022.03.12"]
[EventType "swiss"]
[EventCountry "CZE"]
[SourceTitle "playchess.com"]
[Source "ChessBase"]
[SourceQuality "1"]
[TimeControl "40/5400+30:1800+30"]

1. d4 {[%emt 0:00:03]} d5 {[%emt 0:00:06]} 2. c4 {[%emt 0:00:03]} Nc6 {[%emt 0:00:05]} 3. Nf3 {[%emt 0:00:25]} Bg4 {[%emt 0:00:06]} 4. e3 {[%emt 0:00:11]} e6 {[%emt 0:07:48]} 5. Nc3 {[%emt 0:00:10]} Nf6 {[%emt 0:05:24]} 6. Be2 {[%emt 0:00:08]} Be7 {[%emt 0:10:20]} 7. O-O {[%emt 0:00:08]} O-O {[%emt 0:00:08]} 8. a3 {[%emt 0:00:12]} Na5 {[%emt 0:15:48]} 9. c5 {[%emt 0:01:34]} b6 {[%emt 0:06:16]} 10. b4 {[%emt 0:00:25]} Nc4 {[%emt 0:05:29]} 11. Ne5 {[%emt 0:01:22]} Bxe2 {[%emt 0:02:35]} 12. Qxe2 {[%emt 0:00:11]} Nxe5 {[%emt 0:00:26]} 13. dxe5 {[%emt 0:00:33]} Nd7 {[%emt 0:00:25]} 14. e4 {[%emt 0:03:06]} d4 {[%emt 0:03:56]} 15. Nb5 {[%emt 0:00:08]} Nxe5 {[%emt 0:01:00]} 16. Bf4 {[%emt 0:01:26]} Bf6 {[%emt 0:02:58]} 17. Qd1 {[%emt 0:03:20]} d3 {[%emt 0:01:22]} 18. Ra2 {[%emt 0:01:04]} a6 {[%emt 0:01:53]} 19. Nc3 {[%emt 0:01:29]} Ng6 {[%emt 0:02:17]} 20. Bd2 {[%emt 0:01:09]} bxc5 {[%emt 0:04:06]} 21. bxc5 {[%emt 0:00:46]} Qd4 {[%emt 0:01:04]} 22. Qc1 {[%emt 0:02:19]} Qxc5 {[%emt 0:02:04]} 23. Na4 {[%emt 0:00:51]} Qxc1 {[%emt 0:00:55]} 24. Bxc1 {[%emt 0:00:08]} Rfd8 {[%emt 0:01:07]} 25. Rd1 {[%emt 0:00:15]} Nf4 {[%emt 0:05:09]} 26. Bxf4 {[%emt 0:00:28]} e5 {[%emt 0:03:31]} 27. Be3 {[%emt 0:00:14]} Rab8 {[%emt 0:11:00]} 28. Nc5 {[%emt 0:01:59]} a5 {[%emt 0:00:08]} 29. Rad2 {[%emt 0:01:34]} Rb5 {[%emt 0:02:54]} 30. Rxd3 {[%emt 0:00:31]} Rdb8 {[%emt 0:00:31]} 31. Nd7 {[%emt 0:02:36]} R8b7 {[%emt 0:00:44]} 32. Nxf6+ {[%emt 0:00:59]} gxf6 {[%emt 0:00:12]} 33. Bh6 {[%emt 0:00:45]} 1-0

[Event "CZE-ch Youth G10-G12-G14 2022"]
[Site "Luhacovice"]
[Date "2022.03.18"]
[Round "8.19"]
[White "Sochorova Valentyna"]
[Black "Stehlikova, Vanessa"]
[Result "0-1"]
[ECO "C64"]
[WhiteElo "1201"]
[BlackElo "1039"]
[Annotator "NA"]
[PlyCount "162"]
[EventDate "2022.03.12"]
[EventType "swiss"]
[EventCountry "CZE"]
[SourceTitle "playchess.com"]
[Source "ChessBase"]
[SourceQuality "1"]
[TimeControl "40/5400+30:1800+30"]

1. e4 {[%emt 0:00:04]} e5 {[%emt 0:00:05]} 2. Nf3 {[%emt 0:00:11]} Nc6 {[%emt 0:00:06]} 3. Bb5 {[%emt 0:00:12]} Nf6 {[%emt 0:00:09]} 4. O-O {[%emt 0:00:25]} Bc5 {[%emt 0:00:39]} 5. Re1 {[%emt 0:02:06]} O-O {[%emt 0:00:18]} 6. c3 {[%emt 0:03:57]} d6 {[%emt 0:08:57]} 7. h3 {[%emt 0:06:52]} a6 {[%emt 0:02:25]} 8. Ba4 {[%emt 0:01:00]} Be6 {[%emt 0:01:10]} 9. d4 {[%emt 0:06:06]} exd4 {[%emt 0:11:18]} 10. cxd4 {[%emt 0:01:10]} Bb4 {[%emt 0:03:05]} 11. Bd2 {[%emt 0:19:29]} Bd7 {[%emt 0:00:14]} 12. d5 {[%emt 0:05:43]} Bxd2 {[%emt 0:00:11]} 13. Nbxd2 {[%emt 0:10:02]} Na7 {[%emt 0:00:13]} 14. Bc2 {[%emt 0:04:05]} b5 {[%emt 0:04:36]} 15. Nf1 {[%emt 0:09:31]} Re8 {[%emt 0:01:51]} 16. Ng3 {[%emt 0:05:47]} h6 {[%emt 0:05:37]} 17. a3 {[%emt 0:05:40]} c6 {[%emt 0:00:55]} 18. Qd2 {[%emt 0:02:32]} cxd5 {[%emt 0:00:45]} 19. exd5 {[%emt 0:01:08]} Rxe1+ {[%emt 0:00:18]} 20. Rxe1 {[%emt 0:00:23]} Qc7 {[%emt 0:01:53]} 21. Ne4 {[%emt 0:07:30]} Nh7 {[%emt 0:03:31]} 22. Qd3 {[%emt 0:03:39]} Bf5 {[%emt 0:00:53]} 23. Nh4 {[%emt 0:02:24]} Bxe4 {[%emt 0:05:50]} 24. Qxe4 {[%emt 0:00:52]} Nf6 {[%emt 0:00:38]} 25. Qd3 {[%emt 0:00:59]} Rc8 {[%emt 0:00:36]} 26. Re2 {[%emt 0:00:44]} a5 {[%emt 0:01:43]} 27. Nf5 {[%emt 0:00:36]} Rf8 {[%emt 0:04:56]} 28. Qg3 {[%emt 0:00:42]} g6 {[%emt 0:02:49]} 29. Nxh6+ {[%emt 0:00:23]} Kh8 {[%emt 0:03:59]} 30. Qh4 {[%emt 0:00:29]} Nh7 {[%emt 0:04:27]} 31. Qd4+ {[%emt 0:00:41]} f6 {[%emt 0:00:36]} 32. Bxg6 {[%emt 0:00:29]} Qg7 {[%emt 0:00:27]} 33. Bxh7 {[%emt 0:00:36]} Qxh7 {[%emt 0:00:08]} 34. Ng4 {[%emt 0:00:30]} Qg7 {[%emt 0:02:31]} 35. Re6 {[%emt 0:00:19]} f5 {[%emt 0:00:27]} 36. Rh6+ {[%emt 0:00:19]} Kg8 {[%emt 0:00:11]} 37. Qxg7+ {[%emt 0:00:50]} Kxg7 {[%emt 0:00:03]} 38. Rxd6 {[%emt 0:00:12]} fxg4 {[%emt 0:00:12]} 39. Rd7+ {[%emt 0:00:07]} Rf7 {[%emt 0:00:35]} 40. Rxf7+ {[%emt 0:00:36]} Kxf7 {[%emt 0:00:01]} 41. hxg4 {[%emt 0:30:15]} Kf6 {[%emt 0:30:31]} 42. Kh2 {[%emt 0:00:09]} Ke5 {[%emt 0:00:16]} 43. Kh3 {[%emt 0:00:16]} Kxd5 {[%emt 0:00:06]} 44. f4 {[%emt 0:00:26]} Nc6 {[%emt 0:00:06]} 45. Kh4 {[%emt 0:00:28]} Ke6 {[%emt 0:00:07]} 46. Kh5 {[%emt 0:00:32]} Kf6 {[%emt 0:00:05]} 47. g5+ {[%emt 0:00:20]} Kg7 {[%emt 0:00:09]} 48. f5 {[%emt 0:00:36]} Ne5 {[%emt 0:01:17]} 49. g3 {[%emt 0:01:18]} b4 {[%emt 0:00:32]} 50. a4 {[%emt 0:00:39]} b3 {[%emt 0:00:22]} 51. g4 {[%emt 0:00:23]} Nd3 {[%emt 0:00:37]} 52. f6+ {[%emt 0:01:08]} Kf7 {[%emt 0:00:04]} 53. g6+ {[%emt 0:00:15]} Kg8 {[%emt 0:00:55]} 54. Kh6 {[%emt 0:00:12]} Ne5 {[%emt 0:00:19]} 55. g5 {[%emt 0:01:10]} Ng4+ {[%emt 0:00:09]} 56. Kh5 {[%emt 0:00:28]} Ne5 {[%emt 0:00:18]} 57. f7+ {[%emt 0:00:26]} Kg7 {[%emt 0:00:12]} 58. Kh4 {[%emt 0:00:18]} Nxg6+ {[%emt 0:00:12]} 59. Kg4 {[%emt 0:00:47]} Ne5+ {[%emt 0:00:17]} 60. Kf5 {[%emt 0:00:32]} Nxf7 {[%emt 0:00:20]} 61. g6 {[%emt 0:00:28]} Nd6+ {[%emt 0:00:15]} 62. Ke5 {[%emt 0:00:19]} Nc4+ {[%emt 0:00:14]} 63. Kd4 {[%emt 0:00:23]} Nxb2 {[%emt 0:00:12]} 64. Kc3 {[%emt 0:00:07]} Nxa4+ {[%emt 0:00:21]} 65. Kxb3 {[%emt 0:00:20]} Nb6 {[%emt 0:00:05]} 66. Kc3 {[%emt 0:00:48]} a4 {[%emt 0:00:14]} 67. Kb4 {[%emt 0:00:17]} Kxg6 {[%emt 0:00:08]} 68. Ka3 {[%emt 0:00:20]} Kf5 {[%emt 0:00:12]} 69. Kb4 {[%emt 0:00:21]} Ke4 {[%emt 0:00:10]} 70. Ka3 {[%emt 0:00:11]} Kd4 {[%emt 0:00:07]} 71. Kb4 {[%emt 0:00:10]} Kd3 {[%emt 0:00:05]} 72. Ka3 {[%emt 0:00:07]} Kc2 {[%emt 0:00:04]} 73. Ka2 {[%emt 0:00:19]} Nc4 {[%emt 0:00:19]} 74. Ka1 {[%emt 0:00:16]} Kb3 {[%emt 0:00:32]} 75. Kb1 {[%emt 0:00:07]} Ka3 {[%emt 0:00:45]} 76. Ka1 {[%emt 0:00:07]} Ne3 {[%emt 0:00:29]} 77. Kb1 {[%emt 0:00:13]} Kb3 {[%emt 0:01:08]} 78. Ka1 {[%emt 0:00:09]} Nc2+ {[%emt 0:00:09]} 79. Kb1 {[%emt 0:00:10]} a3 {[%emt 0:00:05]} 80. Kc1 {[%emt 0:00:35]} a2 {[%emt 0:00:05]} 81. Kd1 {[%emt 0:00:09]} a1=Q+ {[%emt 0:00:12]} 0-1

[Event "CZE-ch Youth G10-G12-G14 2022"]
[Site "Luhacovice"]
[Date "2022.03.18"]
[Round "8.20"]
[White "Bartova Hana"]
[Black "Stavova, Lucie"]
[Result "1-0"]
[ECO "C25"]
[WhiteElo "1000"]
[BlackElo "1048"]
[Annotator "NA"]
[PlyCount "80"]
[EventDate "2022.03.12"]
[EventType "swiss"]
[EventCountry "CZE"]
[SourceTitle "playchess.com"]
[Source "ChessBase"]
[SourceQuality "1"]
[TimeControl "40/5400+30:1800+30"]

1. e4 {[%emt 0:00:02]} e5 {[%emt 0:00:13]} 2. Nc3 {[%emt 0:00:08]} Nc6 {[%emt 0:00:13]} 3. f4 {[%emt 0:00:32]} exf4 {[%emt 0:00:13]} 4. d4 {[%emt 0:00:27]} Qh4+ {[%emt 0:02:44]} 5. Ke2 {[%emt 0:03:31]} b6 {[%emt 0:04:50]} 6. Nf3 {[%emt 0:03:27]} Ba6+ {[%emt 0:10:12]} 7. Kd2 {[%emt 0:00:25]} Qf2+ {[%emt 0:01:09]} 8. Ne2 {[%emt 0:01:25]} Qe3+ {[%emt 0:02:26]} 9. Ke1 {[%emt 0:01:09]} Qxe4 {[%emt 0:01:03]} 10. Kf2 {[%emt 0:01:41]} O-O-O {[%emt 0:08:24]} 11. Nc3 {[%emt 0:01:56]} Qf5 {[%emt 0:07:32]} 12. Bxa6+ {[%emt 0:00:59]} Kb8 {[%emt 0:00:00]} 13. Bd3 {[%emt 0:02:00]} Qh5 {[%emt 0:05:14]} 14. Bxf4 {[%emt 0:07:21]} f6 {[%emt 0:05:52]} 15. Re1 {[%emt 0:07:03]} Nge7 {[%emt 0:01:44]} 16. Kg1 {[%emt 0:08:43]} g5 {[%emt 0:02:20]} 17. Bg3 {[%emt 0:04:23]} g4 {[%emt 0:02:31]} 18. Nd2 {[%emt 0:00:32]} Nxd4 {[%emt 0:05:08]} 19. h3 {[%emt 0:05:58]} f5 {[%emt 0:03:21]} 20. Be5 {[%emt 0:04:47]} Rg8 {[%emt 0:06:09]} 21. Bxd4 {[%emt 0:04:18]} Qh6 {[%emt 0:02:26]} 22. hxg4 {[%emt 0:09:27]} Rxg4 {[%emt 0:04:15]} 23. Bf2 {[%emt 0:08:33]} Qg5 {[%emt 0:07:47]} 24. Qf3 {[%emt 0:06:28]} Qxd2 {[%emt 0:03:11]} 25. Be3 {[%emt 0:01:28]} Rxg2+ {[%emt 0:02:21]} 26. Qxg2 {[%emt 0:00:14]} Qxg2+ {[%emt 0:00:10]} 27. Kxg2 {[%emt 0:00:05]} Bg7 {[%emt 0:03:56]} 28. Bg5 {[%emt 0:01:58]} Rg8 {[%emt 0:01:37]} 29. Kf3 {[%emt 0:03:29]} Nc6 {[%emt 0:02:18]} 30. Kf4 {[%emt 0:02:33]} Rf8 {[%emt 0:04:08]} 31. a3 {[%emt 0:01:32]} Nd4 {[%emt 0:00:47]} 32. Rac1 {[%emt 0:02:35]} Ne6+ {[%emt 0:00:35]} 33. Rxe6 {[%emt 0:01:24]} dxe6 {[%emt 0:00:23]} 34. Re1 {[%emt 0:00:35]} e5+ {[%emt 0:01:21]} 35. Kg3 {[%emt 0:01:01]} f4+ {[%emt 0:00:50]} 36. Kf3 {[%emt 0:00:50]} Kc8 {[%emt 0:00:35]} 37. Bxh7 {[%emt 0:00:36]} c5 {[%emt 0:00:31]} 38. Re4 {[%emt 0:00:38]} Rh8 {[%emt 0:00:30]} 39. Bf5+ {[%emt 0:00:25]} Kb7 {[%emt 0:00:30]} 40. Nd5 {[%emt 0:01:04]} Rd8 {[%emt 0:00:30]} 1-0

[Event "CZE-ch Youth G10-G12-G14 2022"]
[Site "Luhacovice"]
[Date "2022.03.18"]
[Round "8.21"]
[White "Vaclavkova Klara"]
[Black "Krisicova Neli"]
[Result "0-1"]
[ECO "D41"]
[WhiteElo "1000"]
[BlackElo "1093"]
[Annotator "NA"]
[PlyCount "102"]
[EventDate "2022.03.12"]
[EventType "swiss"]
[EventCountry "CZE"]
[SourceTitle "playchess.com"]
[Source "ChessBase"]
[SourceQuality "1"]
[TimeControl "40/5400+30:1800+30"]

1. d4 {[%emt 0:00:04]} d5 {[%emt 0:00:06]} 2. c4 {[%emt 0:00:03]} e6 {[%emt 0:00:11]} 3. Nf3 {[%emt 0:00:06]} Nf6 {[%emt 0:01:25]} 4. Nc3 {[%emt 0:00:06]} c5 {[%emt 0:00:53]} 5. cxd5 {[%emt 0:00:08]} Nxd5 {[%emt 0:00:26]} 6. e4 {[%emt 0:01:11]} Nxc3 {[%emt 0:00:55]} 7. bxc3 {[%emt 0:00:07]} b6 {[%emt 0:02:16]} 8. Bf4 {[%emt 0:02:48]} Bb7 {[%emt 0:03:39]} 9. e5 {[%emt 0:00:43]} cxd4 {[%emt 0:02:14]} 10. Qxd4 {[%emt 0:00:37]} Qxd4 {[%emt 0:01:36]} 11. Nxd4 {[%emt 0:00:00]} Bc5 {[%emt 0:05:48]} 12. Bb5+ {[%emt 0:00:27]} Ke7 {[%emt 0:00:30]} 13. Rd1 {[%emt 0:00:30]} Bxg2 {[%emt 0:00:30]} 14. Rg1 {[%emt 0:00:52]} Bd5 {[%emt 0:02:06]} 15. Rxg7 {[%emt 0:00:56]} Bxd4 {[%emt 0:02:10]} 16. Rxd4 {[%emt 0:00:24]} h6 {[%emt 0:01:20]} 17. Bc1 {[%emt 0:01:29]} Nd7 {[%emt 0:02:08]} 18. Rf4 {[%emt 0:02:03]} Nxe5 {[%emt 0:01:35]} 19. Ba3+ {[%emt 0:02:54]} Kd8 {[%emt 0:00:39]} 20. c4 {[%emt 0:01:41]} Nd3+ {[%emt 0:00:34]} 21. Kd1 {[%emt 0:00:41]} Nxf4 {[%emt 0:00:28]} 22. cxd5 {[%emt 0:00:18]} Nxd5 {[%emt 0:00:58]} 23. Rxf7 {[%emt 0:00:34]} Nc3+ {[%emt 0:00:41]} 24. Kc1 {[%emt 0:00:16]} Nxb5 {[%emt 0:00:28]} 25. Bb2 {[%emt 0:00:28]} Rc8+ {[%emt 0:01:46]} 26. Kd1 {[%emt 0:00:43]} Rg8 {[%emt 0:01:03]} 27. Bf6+ {[%emt 0:00:20]} Ke8 {[%emt 0:00:26]} 28. Re7+ {[%emt 0:00:24]} Kf8 {[%emt 0:00:25]} 29. Rxe6 {[%emt 0:01:15]} Rg6 {[%emt 0:01:00]} 30. Be7+ {[%emt 0:01:23]} Kf7 {[%emt 0:00:34]} 31. Re3 {[%emt 0:00:30]} Re6 {[%emt 0:01:23]} 32. Rb3 {[%emt 0:00:14]} Kxe7 {[%emt 0:00:22]} 33. Rxb5 {[%emt 0:00:11]} Rc5 {[%emt 0:01:29]} 34. Rb2 {[%emt 0:01:39]} Rg5 {[%emt 0:00:47]} 35. Kc1 {[%emt 0:00:34]} Rg2 {[%emt 0:00:39]} 36. Kd1 {[%emt 0:00:23]} Rxh2 {[%emt 0:00:16]} 37. Kc1 {[%emt 0:00:14]} h5 {[%emt 0:00:47]} 38. Kb1 {[%emt 0:00:08]} Re1+ {[%emt 0:00:30]} 39. Kc2 {[%emt 0:00:26]} Rxf2+ {[%emt 0:00:14]} 40. Kb3 {[%emt 0:00:11]} Rxb2+ {[%emt 0:00:09]} 41. Kxb2 {[%emt 0:30:06]} h4 {[%emt 0:30:14]} 42. a4 {[%emt 0:00:12]} h3 {[%emt 0:00:20]} 43. Kb3 {[%emt 0:00:04]} h2 {[%emt 0:00:08]} 44. Kb4 {[%emt 0:00:03]} h1=Q {[%emt 0:00:10]} 45. Kb3 {[%emt 0:00:19]} Qf3+ {[%emt 0:00:17]} 46. Kb4 {[%emt 0:00:15]} Re4+ {[%emt 0:00:08]} 47. Kb5 {[%emt 0:00:14]} Qf5+ {[%emt 0:00:08]} 48. Ka6 {[%emt 0:00:25]} Rxa4+ {[%emt 0:00:19]} 49. Kb7 {[%emt 0:00:08]} Qd7+ {[%emt 0:00:33]} 50. Kb8 {[%emt 0:00:17]} Rc4 {[%emt 0:00:15]} 51. Ka8 {[%emt 0:00:13]} Rc8# {[%emt 0:00:06]} 0-1